Cogmind - Beta 16 @@@ ROGUE MODE // 2025.12.23 @ 15:44:58 Player: TheGamingJasper Result: Self-destructed Performance ------------- Evolutions (1) 500 Regions Visited (2) 400 Robots Destroyed (15) 75 Value Destroyed (254) 254 Prototype IDs (0) 0 Alien Tech Used (0) 0 Bonus (200) 200 TOTAL SCORE: 1429 Bonus ------- Pacifist 200 Cogmind --------- Core Integrity 125/400 Matter 300/300 Energy 60/100 System Corruption 0% Temperature Danger (409) Movement Flying (40) Location -9/Materials Parts ------- > --- POWER (1) -------- (None) > --- PROPULSION (3) --- Flight Unit > --- UTILITY (3) ------ (None) > --- WEAPON (2) ------- Heavy EM Pulse Gun > --- INVENTORY (5) ---- Ion Engine Improved Sensor Array Signal Interpreter Small Laser Small Laser Peak State ------------ > --- POWER ------------ Light Nuclear Core > --- PROPULSION ------- Aluminum Leg Aluminum Leg Improved Aluminum Leg > --- UTILITY ---------- Heat Sink Medium Storage Unit Targeting Computer > --- WEAPON ----------- Heavy EM Pulse Gun Particle Gun > --- INVENTORY -------- Ion Engine Aluminum Leg Aluminum Leg Improved Aluminum Leg Small Storage Unit Improved Sensor Array Signal Interpreter Small Laser Small Laser [Rating: 15] Favorites ----------- Power Ion Engine Engine Ion Engine Power Core Light Nuclear Core Propulsion Aluminum Leg Leg Aluminum Leg Flight Unit Flight Unit Utility Heat Sink Device Heat Sink Storage Medium Storage Unit Processor Targeting Computer Weapon Small Laser Energy Gun Small Laser Build | -11 -10 -9 ------- Run | Yrd Mat Mat Slots Evolved 2 | . . 2 Power . | . . . Propulsion 1 | . . 1 Utility 1 | . . 1 Weapon . | . . . Parts Attached 17 | 4 4 9 Power 2 | 1 . 1 Engine 1 | 1 . . Core 1 | . . 1 Reactor . | . . . Propulsion 6 | 2 . 4 Treads . | . . . Leg 3 | 2 . 1 Wheel . | . . . Hover . | . . . Flight 3 | . . 3 Utility 5 | 1 2 2 Device 2 | . 1 1 Storage 2 | 1 1 . Processor 1 | . . 1 Hackware . | . . . Protection . | . . . Artifact . | . . . Weapon 4 | . 2 2 Energy Gun 4 | . 2 2 Energy Cannon . | . . . Ballistic Gun . | . . . Ballistic Cannon . | . . . Launcher . | . . . Special Weapon . | . . . Impact Weapon . | . . . Slashing Weapon . | . . . Piercing Weapon . | . . . Special Melee Weapon . | . . . Unidentified Prototypes . | . . . Parts Lost 6 | . . 6 Power 1 | . . 1 Propulsion 2 | . . 2 Utility 2 | . . 2 Weapon 1 | . . 1 Highest Loss Streak 5 | . . 5 To Critical Strikes . | . . . Average Backups 5 | 2 4 6 Power . | . 1 1 Propulsion . | . . 1 Utility 2 | . 2 2 Weapon . | 1 . 1 Tool/Special . | . . . Unused Backups 7 | . . 7 Power 2 | . . 2 Propulsion 3 | . . 3 Utility 2 | . . 2 Weapon . | . . . Tool/Special . | . . . Average Slot Usage (%) 87 | . 90 85 Engine 8 | . 14 4 Core 3 | . . 6 Leg 25 | . 28 24 Flight 2 | . . 3 Device 12 | . 12 11 Storage 10 | . 14 8 Processor 2 | . . 4 Energy Gun 20 | . 19 21 Peak Build Rating 15 | 4 7 15 Average Rating 9 | 2 6 11 On Entrance 3 | . 4 7 Avg Prop Armor Cover (%) . | . . . Naked Turns . | . . . Heaviest Build 22 | 10 18 22 Greatest Support 33 | 20 20 33 Greatest Overweight (x) 7 | . . 7 Average Overweight (x) . | . . . Largest Inventory Capacity 10 | 8 10 10 Average Capacity 9 | 7 9 8 Most Carried 10 | 5 6 10 Average Carried 5 | 2 4 6 Final Capacity 10 | 8 10 5 Final Carried 5 | 3 4 5 Class Distribution -------------------- 100% | Mutant Dominant Class ---------------- Mutant | -10/Materials Mutant | -9/Materials Resources | -11 -10 -9 ----------- Run | Yrd Mat Mat Matter Collected 370 | 188 . 182 Remotely . | . . . Salvage Created 405 | . . 405 Parts 31 | . . 31 Haulers Intercepted . | . . . Recyclers Shooed . | . . . Parts Field Recycled . | . . . Retrieved Matter . | . . . Parts Self-Destructed . | . . . Prevented . | . . . Parts Restored . | . . . Kills | -11 -10 -9 ------- Run | Yrd Mat Mat Combat Hostiles Destroyed 11 | . . 11 Guns 11 | . . 11 Classes Destroyed 6 | . . 6 Worker 2 | . . 2 Recycler 1 | . . 1 Watcher 1 | . . 1 Swarmer 7 | . . 7 Grunt 3 | . . 3 Sentry 1 | . . 1 Best Kill Streak 7 | . . 7 Combat Bots Only 5 | . . 5 Max Kills in Single Turn 2 | . . 2 Gunslinging 1 | . . 1 Exploded . | . . . Melee . | . . . Uniques/NPCs Destroyed . | . . . Combat | -11 -10 -9 -------- Run | Yrd Mat Mat Hostile Shots Fired 72 | . . 72 Missed 12 | . . 12 Hits 60 | . . 60 Projectile 60 | . . 60 Damage Taken 749 | . . 749 Core 275 | . . 275 Absorbed by Shields . | . . . Core Remaining (%) 100 | 100 100 . Volleys Fired 40 | . 3 37 Largest 2 | . 2 2 Hottest 110 | . 80 110 Shots Fired 76 | . 6 70 Gun 76 | . 6 70 Cannon . | . . . Launcher . | . . . Special . | . . . Kinetic . | . . . Thermal 56 | . 6 50 Explosive . | . . . Electromagnetic 20 | . . 20 Robot Hit Streak 17 | . 3 17 Robot Miss Streak 4 | . 1 4 Penetration Max . | . . . Secondary Targets 3 | . . 3 Max Gunslinging Chain 1 | . . 1 Shots Hit Robots 49 | . 4 45 Core Hits 20 | . . 20 Critical Kills . | . . . Critical Parts Destroyed . | . . . Critical Strikes 2 | . . 2 Burn 2 | . . 2 Melee Attacks . | . . . Impact . | . . . Slashing . | . . . Piercing . | . . . Sneak Attacks . | . . . Combat Hostiles . | . . . Follow-up Attacks . | . . . Damage Inflicted 682 | . 41 641 Guns 633 | . 41 592 Cannons . | . . . Explosions 49 | . . 49 Melee . | . . . Ramming . | . . . Kinetic . | . . . Thermal 524 | . 41 483 Explosive . | . . . Electromagnetic 158 | . . 158 Impact . | . . . Slashing . | . . . Piercing . | . . . Highest Corruption 2 | . 2 . Average Corruption 2 | . 2 . Corruption Purged . | . . . Corruption Blocked . | . . . Overload Shots . | . . . Overflow Damage . | . . . Projectiles . | . . . Explosions . | . . . Melee . | . . . Knockbacks . | . . . Impact . | . . . Kinetic . | . . . Secondary . | . . . Self-Inflicted Damage . | . . . Shots . | . . . Rammed . | . . . Targets Rammed . | . . . Kicked . | . . . Crushed . | . . . Highest Temperature 430 | . . 430 Average Temperature 181 | . . 181 Received Heat Transfer 213 | . . 213 Effects 3 | . . 3 Energy Bleed 1 | . . 1 Damage (minor) 2 | . . 2 Siege Activations . | . . . Martial Activations . | . . . Shielding Activations . | . . . Robots Disrupted . | . . . Combat Hostiles . | . . . Robots Corrupted . | . . . Combat Hostiles . | . . . Parts Fried . | . . . Impact Corruptions . | . . . Robots Melted . | . . . Combat Hostiles . | . . . Parts Melted 3 | . . 3 Heat Transferred 1345 | . 100 1245 Parts Sabotaged . | . . . Parts Stolen . | . . . Parts Stripped . | . . . Power Chain Reactions 1 | . . 1 Alert | -11 -10 -9 ------- Run | Yrd Mat Mat Maximum Alert Level . | . . . Low Security (%) 100 | 100 100 100 Level 1 . | . . . Level 2 . | . . . Level 3 . | . . . Level 4 . | . . . Level 5 . | . . . High Security . | . . . Max Security . | . . . Peak Influence 185 | . . 185 Initial . | . . . Average 35 | . . 63 Influence Increases 335 | . . 335 Destroy 0b10 Robot/C 220 | . . 220 Destroy 0b10 Robot/NC 20 | . . 20 Destroy Leader 32 | . . 32 Destroy Structure 3 | . . 3 Lose Combat Pursuer 60 | . . 60 Influence Decreases 210 | . . 210 Time Decay 150 | . . 150 Lost Part 60 | . . 60 Squads Dispatched 3 | . 1 2 Investigation 1 | . 1 . Extermination . | . . . Reinforcement 2 | . . 2 Assault . | . . . Garrison . | . . . Intercept . | . . . Searches Triggered . | . . . Construction Impeded 1 | . . 1 Haulers Reinforced . | . . . Active Scanning Responses . | . . . Cargo Convoy Interrupts . | . . . Stealth | -11 -10 -9 --------- Run | Yrd Mat Mat Distress Signals 1 | . . 1 Communications Jammed . | . . . Distress Signals . | . . . Times Spotted 24 | . 1 23 Peak Tracking Total 4 | . 1 4 Tactical Retreats 3 | . . 3 Traps | -11 -10 -9 ------- Run | Yrd Mat Mat Traps Triggered 4 | . 2 2 Indirectly . | . . . Trap Hack Attempts . | . . . Triggered . | . . . Disarmed . | . . . Reprogrammed . | . . . Reused . | . . . Traps Extracted . | . . . Installed . | . . . Triggered . | . . . Machines | -11 -10 -9 ---------- Run | Yrd Mat Mat Machines Disabled . | . . . Max in Single Turn . | . . . Machines Repaired . | . . . Machines Dismantled . | . . . Machines Sabotaged . | . . . Overloaded Fab Kills . | . . . Hacking | -11 -10 -9 --------- Run | Yrd Mat Mat Machines Accessed . | . . . Terminals . | . . . Fabricators . | . . . Repair Stations . | . . . Recycling Units . | . . . Scanalyzers . | . . . Garrison Access . | . . . Total Hacks . | . . . Successful . | . . . Failed . | . . . Catastrophic . | . . . Database Lockouts . | . . . Manual . | . . . Terminals . | . . . Fabricators . | . . . Repair Stations . | . . . Recycling Units . | . . . Scanalyzers . | . . . Garrison Access . | . . . Terminal Hacks . | . . . Fabricator Hacks . | . . . Repair Station Hacks . | . . . Recycling Unit Hacks . | . . . Scanalyzer . | . . . Garrison Access Hacks . | . . . Unauthorized Hacks . | . . . Terminals . | . . . Fabricators . | . . . Repair Stations . | . . . Recycling Units . | . . . Scanalyzers . | . . . Garrison Access . | . . . Data Cores Recovered . | . . . Used . | . . . Hacking Detections . | . . . Full Trace Events . | . . . Feedback Events . | . . . Feedback Blocked . | . . . Robot Schematics Acquired . | . . . Robots Built . | . . . Authchips . | . . . Time . | . . . Total Robot Build Rating . | . . . Part Schematics Acquired . | . . . Parts Built . | . . . Authchips . | . . . Time . | . . . Total Part Build Rating . | . . . Part Studies Acquired . | . . . Parts Repaired . | . . . Time . | . . . Parts Recycled . | . . . Recycled Matter . | . . . Retrieved Matter . | . . . Retrieved Components . | . . . Parts Scanalyzed . | . . . Part Schematics Acquired . | . . . Parts Damaged . | . . . Bothacking | -11 -10 -9 ------------ Run | Yrd Mat Mat Used RIF Installer . | . . . Robots Hacked . | . . . Non-combat . | . . . Combat . | . . . Robot Hacks Applied . | . . . Relay Couplers Released . | . . . Fabnet Peak Effective % . | . . . Robots Rewired . | . . . Allies Hacked . | . . . Hacks Repelled . | . . . Allies | -11 -10 -9 -------- Run | Yrd Mat Mat Total Allies . | . . . Largest Group . | . . . Highest-Rated Group . | . . . Highest-Rated Ally . | . . . Total Orders . | . . . Ally Attacks . | . . . Total Damage . | . . . Kills . | . . . Allies Corrupted . | . . . Allies Melted . | . . . Intel | -11 -10 -9 ------- Run | Yrd Mat Mat Active Infowar (turns) 84 | . . 84 Sensors 84 | . . 84 Robot Analysis Total . | . . . Derelict Logs Recovered . | . . . Drone Launches . | . . . Drone Recoveries . | . . . Exploration | -11 -10 -9 ------------- Run | Yrd Mat Mat Turns Passed 675 | 42 250 383 Spaces Moved 316 | 33 111 172 Core 12 | 11 . 1 Treads . | . . . Legs 285 | 22 111 152 Wheels . | . . . Hover . | . . . Flight 19 | . . 19 Fastest Speed 34 | 50 120 34 Average Speed 122 | 96 120 128 Slowest Speed 400 | 120 120 400 Overloaded Moves . | . . . Propulsion Burnouts . | . . . Robots Hopped 2 | . . 2 Potential Cave-ins . | . . . Cave-ins Triggered . | . . . Exploration Rate (%) 15 | 5 18 23 Regions Visited 2 Branch Regions . Pre-discovered Areas . | . . . Known Exits Taken . | . . . Unknown Exits Taken 2 | 1 1 . Scrap Searched . | . . . Spaces Dug . | . . . Terrain Destroyed 2 | . . 2 Melee . | . . . Projectile . | . . . AOE 2 | . . 2 Terrain Rammed . | . . . Walls Destroyed . | . . . Machines Disabled . | . . . Actions | -11 -10 -9 --------- Run | Yrd Mat Mat Total 526 | 43 221 262 Wait 126 | . 100 26 Move 311 | 32 110 169 Hop 1 | . . 1 Pick Up 21 | 7 4 10 Fast Attach 3 | . . 3 Attach 9 | 4 3 2 Detach . | . . . Swap 5 | . 1 4 Drop 10 | . . 10 Fire 40 | . 3 37 Melee . | . . . Ram . | . . . Kick . | . . . Crush . | . . . Escape Stasis . | . . . Rewire . | . . . Trap . | . . . Miscellaneous . | . . . Route ------- -11/Scrapyard -10/Materials -9/Materials History --------- Turn | Location | Event 28 | -11/Scrapyard | Discovered new exit (range 12) 43 | -11/Scrapyard | Entered Materials 270 | -10/Materials | Discovered new exit (range 16) 293 | -10/Materials | Entered another Materials area 293 | -9/Materials | Evolved 2 slots: Propulsion x1, Utility x1 304 | -9/Materials | Build established: Mutant 658 | -9/Materials | Core integrity fell below 50% 676 | -9/Materials | Self-destructed Last Messages --------------- U-05 Engineer lays Concrete. U-05 Engineer builds a Wall. U-05 Engineer lays Concrete. U-05 Engineer builds a Door. S-10 Pest destroyed. Switching to secondary target: Y-45 Defender. U-05 Engineer suffers critical hit (Burn). ALERT: Construction progress impeded, dispatching reinforcements to local area. U-05 Engineer lays Concrete. Overheating: Flight Unit damaged (-1). U-05 Engineer builds a Wall. Particle Gun destroyed. Flight Unit destroyed. Lgt. Nuclear Core destroyed. U-05 Engineer lays Concrete. Overheating: Flight Unit damaged (-10). C-30 ARC bursts open, deploying its payload. S-10 Pest unfolds itself. Imp. Sensor Array destroyed. Map ----- +----------------------------------------------------+ | ?????????????????????????######## ########?????? | | ?????????????????????????# # # #?????? | | ?????????????????????????# ! # # #?????? | | ?????????????????????????# + + """ #?????? | | ?????????????????????????# % # # """ #?????? | | ?????????????????????????# # # """ #?????? | | ?????????????????????????# # #? #?????? | | ????????????????????????######### #?######?????? | | ???????????????????????? # #????????????? | | ???????????????????????# """ # #????????????? | | ???????????????????????# """ + ########?????? | | ???????????????????????# """ # #?????? | | ???????????????????????? # #?????? | | ???????????????????????# """?# #?????? | | ?????????????? ???????# """?## ##### #?????? | | ?????????????? ??????# ""???# #???? #?????? | | ?????????????? k ?????# ???# #???? #?????? | | ??????????????? ????####?#????# #???? #?????? | | ????????????????? ?????????????# #???# #?????? | | ?????????????????? ???????##???# #???# #?????? | | ??????????????????? k###### #####+##### #?????? | | ???????????????????? # ## # #?????? | | ????????????????????? ss ## = # #?????? | | ??????????????????????# =[ Y ## # #?????? | | ??????????????????????# [[ ## # #?????? | | ??????????????????????# u@ ## # #?????? | | ??????????????????????# =%![ ## + #?????? | | ??????????????????????###;##### # #?????? | | ????????????????????????#[##??# # ###?????? | | ????????????????????????#%#???# # #???????? | | ????????????????????????#!#???########## #???????? | | ????????????????????????#%#????????????# #???????? | | ????????????????????????#=############## #???????? | | ????????????????????????#%=[*= #???????? | | ????????????????????????#!############ ####????? | | ????????????????????????#%#??????????# #????? | | ????????????????????????#*#??????????#!! !!!#????? | | ????????????????????????#%#??????????#!! !!!#????? | | ????????????????????????#[#??????????########????? | | ????????????????#########%####???????????????????? | | ????????? !=%%= #???????????????????? | | ?????????? T ===! +??????????????? | | ????????? ! ######??????????????? | | ?????????? ##+#########+#+#???????????????????? | | ?????????????????????????? ??????????????????????? | | ??????????????????????????"??????????????????????? | | ??????????????????????????"??????????????????????? | | ?????????????????????????????????????????????????? | | ?????????????????????????????????????????????????? | | ?????????????????????????????????????????????????? | +----------------------------------------------------+ Best States ------------- Heat Dissipation 38 Energy Generation 14 Energy Capacity 250 Matter Stores 300 Matter Capacity 300 Sight Range 16 Robot Scan Range 15 Terrain Scan Density 10 Evasion (%) 55 Targeting Accuracy 5 Item Schematics ----------------- None Robot Schematics ------------------ None Fabricated ------------ Nothing Repaired ---------- Nothing Studied --------- None Alien Tech Used ----------------- None Achievements -------------- None Challenges ------------ None Game ------ Seed CentriumHoverTrap Manual? 0 Play Time 00:05:58 Cumulative 34.9 hours Start 2025.12.23 @ 15:39:10 End 2025.12.23 @ 15:44:58 Sessions 1 Manual Loads 0 Difficulty Rogue Special Mode None Game No. 62 Rogue 61 Adventurer 1 Explorer 0 Win Type - Total 0 Types 0/0/0/0/0/0/0/0/0/0 Lore% 9 Gallery% 31 Achievement% 20 Wizard Run 0 Options --------- Layout 1 ASCII 0 Keyboard 0 Movement Mouse Keybinds 0 Fullscreen 1 Font 24/Smallcaps Map View 50x35 Zoom Use 0% Tactical HUD 0 Map Filters NONE Filters NONE Steam 1 RUN: e8fa3036-f814-40f2-ae3c-df36db0ffcd0